bitfinex-derivatives/quotes_BTCF0:USTF0_20250108
["timestamp","ask_amount","ask_price","bid_price","bid_amount"]
[1736307215141,0.3608,96835.0,96825.0,0.10267921]
[1736307217649,0.3608,96835.0,96825.0,0.0043839]
[1736307218241,0.3608,96835.0,96823.0,0.01663721]
[1736307218645,0.3608,96835.0,96821.0,0.32440297]
[1736307218846,0.3608,96835.0,96821.0,0.20187808]
[1736307220348,0.01911411,96844.0,96821.0,0.20187808]
[1736307220551,0.3608,96834.0,96821.0,0.20187808]
[1736307220853,0.3608,96834.0,96821.0,0.10478898]
[1736307222650,0.3608,96834.0,96821.0,0.04610702]
[1736307222850,0.01918827,96850.0,96833.0,0.3608]
[1736307223153,0.3608,96856.0,96841.0,0.24577012]
[1736307223362,0.3608,96856.0,96846.0,0.10267921]
[1736307223966,0.37930981,96856.0,96846.0,0.10267921]
[1736307225657,0.37930981,96856.0,96841.0,0.24577012]
[1736307225857,0.37930981,96856.0,96846.0,0.10267921]
[1736307226057,0.37930981,96856.0,96846.0,0.09241129]
[1736307226253,0.37930981,96856.0,96842.0,0.3928]
[1736307226565,0.37930981,96856.0,96840.0,0.10267921]
[1736307226566,0.3608,96848.0,96840.0,0.10267921]
[1736307228558,0.37930981,96856.0,96840.0,0.10267921]
[1736307230667,0.37930981,96856.0,96840.0,0.00561166]
[1736307232872,0.37930981,96856.0,96846.0,0.10267921]
[1736307233074,0.37930981,96856.0,96846.0,0.09241129]
[1736307233676,0.37930981,96856.0,96834.0,0.4052]
[1736307233677,0.37930981,96856.0,96840.0,0.10267921]
[1736307235772,0.37930981,96856.0,96840.0,0.00560909]
[1736307236972,0.3608,96846.0,96840.0,0.10267921]
[1736307237178,0.3608,96846.0,96833.0,0.25639565]
[1736307237377,0.3608,96846.0,96836.0,0.10267921]
[1736307237778,0.37930981,96856.0,96836.0,0.10267921]
[1736307238075,0.37930981,96856.0,96840.0,0.10267921]
[1736307238776,0.3608,96847.0,96840.0,0.10267921]
[1736307239977,0.37935589,96847.0,96840.0,0.10267921]
[1736307241371,0.37935589,96847.0,96834.0,0.3291]
[1736307241372,0.37935589,96847.0,96837.0,0.13468602]
[1736307242373,0.4276,96846.0,96837.0,0.13468602]
[1736307244774,0.4276,96846.0,96837.0,0.06734301]
[1736307245579,0.4276,96846.0,96836.0,0.06734301]
[1736307247485,0.3608,96839.0,96824.0,0.36132]
[1736307247689,0.4296,96838.0,96824.0,0.3608]
[1736307247885,0.4296,96838.0,96829.0,0.06734301]
[1736307249288,0.4296,96838.0,96828.0,0.10264831]
[1736307250477,0.4296,96838.0,96828.0,0.09238348]
[1736307250989,0.3608,96829.0,96828.0,0.09238348]
[1736307251193,0.3608,96829.0,96821.0,0.3608]
[1736307263294,0.3608,96832.0,96819.0,0.10264831]
[1736307264804,0.45354145,96838.0,96819.0,0.10264831]
[1736307265096,0.3608,96832.0,96828.0,0.10264831]
[1736307265401,0.3608,96832.0,96822.0,0.10264831]
[1736307265603,0.3608,96832.0,96822.0,0.09238348]
[1736307268499,0.45354145,96838.0,96826.0,0.3608]
[1736307268694,0.45354145,96838.0,96828.0,0.10264831]
[1736307269207,0.4296,96838.0,96828.0,0.10264831]
[1736307269505,0.4296,96838.0,96828.0,0.021007]
[1736307270209,0.3608,96843.0,96828.0,0.08835883]
[1736307270506,0.3608,96843.0,96834.0,0.3608]
[1736307270708,0.4276,96846.0,96834.0,0.3608]
[1736307271009,0.4276,96846.0,96835.0,0.3158]
[1736307273804,0.4276,96846.0,96836.0,0.06735183]
[1736307275908,0.3975,96849.0,96836.0,0.06735183]
[1736307276109,0.3975,96849.0,96839.0,0.06735183]
[1736307276504,0.3975,96849.0,96846.0,0.3608]
[1736307277309,0.4221,96856.0,96846.0,0.3608]
[1736307277509,0.4221,96856.0,96846.0,0.42815183]
[1736307278611,0.4221,96856.0,96846.0,0.26707446]
[1736307279613,0.4221,96856.0,96846.0,0.24036702]
[1736307281902,0.4221,96856.0,96846.0,0.30771885]
[1736307282100,0.4221,96856.0,96846.0,0.24036702]
[1736307283407,0.4221,96856.0,96846.0,0.21633032]
[1736307285312,0.4221,96856.0,96846.0,0.06735183]
[1736307289518,0.4221,96856.0,96846.0,0.13470366]
[1736307290913,0.3608,96857.0,96846.0,0.1212333]
[1736307291103,0.4264,96869.0,96851.0,0.3608]
[1736307291305,0.4264,96869.0,96859.0,0.42815183]
[1736307292614,0.4264,96869.0,96859.0,0.49550366]
[1736307295415,0.3608,96878.0,96859.0,0.56285549]
[1736307295713,0.8105,96891.0,96868.0,0.56285549]
[1736307295913,0.8105,96891.0,96882.0,0.06735183]
[1736307296108,0.4073,96891.0,96882.0,0.06735183]
[1736307296319,0.7299,96914.0,96888.0,0.3608]
[1736307296509,0.7299,96914.0,96904.0,0.06735183]
[1736307296510,0.43211238,96914.0,96904.0,0.06735183]
[1736307296816,0.3608,96937.0,96910.0,0.3608]
[1736307297019,0.3608,96949.0,96927.0,0.13470366]
[1736307297217,0.4044,96948.0,96939.0,0.13470366]
[1736307297517,0.06735183,96980.0,96934.0,0.3608]
[1736307297518,0.3608,96974.0,96942.0,0.3608]
[1736307297722,0.3608,96974.0,96959.0,0.2047688]
[1736307298017,0.4044,96979.0,96960.0,0.1023844]
[1736307298018,0.3608,96975.0,96960.0,0.1023844]
[1736307298219,0.02928832,96980.0,96969.0,0.1023844]
[1736307298407,0.3608,96983.0,96969.0,0.1023844]
[1736307298913,0.02946594,96992.0,96969.0,0.1023844]
[1736307299224,0.3608,96993.0,96983.0,0.1023844]
[1736307299424,0.3608,97012.0,96986.0,0.3608]
[1736307299613,0.13014317,97000.0,96990.0,0.2047688]
[1736307299809,0.00056001,97019.0,96995.0,0.3608]
[1736307300119,0.3608,97034.0,97014.0,0.3608]
[1736307300322,0.3608,97034.0,97023.0,0.3608]
[1736307300821,0.3608,97052.0,97023.0,0.6608]
[1736307301121,0.3608,97056.0,97042.0,0.1023844]
[1736307301322,0.3608,97048.0,97020.0,0.1023844]
[1736307301522,0.3608,97035.0,97020.0,0.1023844]
[1736307302212,0.3608,97035.0,97018.0,0.3608]
[1736307302428,0.3608,97035.0,97007.0,0.3608]
[1736307302429,0.3608,97025.0,97007.0,0.3608]
[1736307303226,0.3608,97012.0,96985.0,0.3608]
[1736307303422,0.1023844,97000.0,96985.0,0.3608]
[1736307304119,0.3608,97004.0,96985.0,0.3608]
[1736307304120,0.3608,96995.0,96985.0,0.3608]
[1736307307029,0.3608,97014.0,96985.0,0.3608]
[1736307307030,0.3608,97004.0,96985.0,0.4631844]
[1736307307225,0.3608,97004.0,96994.0,0.1023844]
[1736307308119,0.3608,97004.0,96993.0,0.3608]
[1736307308316,0.3608,96996.0,96973.0,0.46344]
[1736307308517,0.3608,96980.0,96970.0,0.3608]
[1736307308824,0.4631844,96980.0,96970.0,0.3608]
[1736307309322,0.3608,96971.0,96965.0,0.00154669]
[1736307309528,0.4631844,96980.0,96965.0,0.00154669]
[1736307309529,0.3608,96980.0,96965.0,0.00154669]
[1736307315724,0.3608,96980.0,96970.0,0.1023844]
[1736307316028,0.3608,96991.0,96976.0,0.3608]
[1736307316227,0.3608,96991.0,96984.0,0.3608]
[1736307316427,0.4032,96995.0,96984.0,0.3608]
[1736307316821,0.3608,96989.0,96974.0,0.3608]
[1736307317024,0.3608,96989.0,96980.0,0.1023844]
[1736307317224,0.3608,96989.0,96974.0,0.3608]
[1736307317525,0.3608,96989.0,96965.0,0.3608]
[1736307317526,0.3608,96980.0,96965.0,0.3608]
[1736307317916,0.3608,96980.0,96970.0,0.1023844]
[1736307318732,0.4212,96988.0,96974.0,0.3608]
[1736307318918,0.4212,96988.0,96978.0,0.1023844]
[1736307322633,0.4212,96988.0,96984.0,0.3608]
[1736307322934,0.3608,96994.0,96984.0,0.3608]
[1736307324324,0.3608,96994.0,96975.0,0.3608]
[1736307324823,0.7351,96993.0,96975.0,0.3608]
[1736307325227,0.4268,96992.0,96975.0,0.3608]
[1736307325835,0.4268,96992.0,96980.0,0.1023844]
[1736307327830,0.11116944,96991.0,96980.0,0.1023844]
[1736307329038,0.4268,96992.0,96980.0,0.1023844]
[1736307329039,0.11116944,96990.0,96980.0,0.1023844]
[1736307330242,0.11116944,96989.0,96980.0,0.1023844]
[1736307330935,0.11116944,96989.0,96980.0,0.05606597]
[1736307331342,0.4268,96992.0,96980.0,0.05606597]
[1736307331343,0.23837259,96988.0,96980.0,0.05606597]
[1736307331543,0.3608,96982.0,96978.0,0.1023844]
[1736307332333,0.3608,96982.0,96972.0,0.1023844]
[1736307332634,0.23837259,96981.0,96972.0,0.1023844]
[1736307333637,0.23837259,96980.0,96972.0,0.1023844]
[1736307334442,0.3608,96982.0,96972.0,0.1023844]
[1736307335937,0.3608,96982.0,96965.0,0.33128093]
[1736307336137,0.3608,96982.0,96965.0,0.35197488]
[1736307336831,0.3608,96982.0,96965.0,0.28666466]
[1736307337541,0.3608,96982.0,96965.0,0.02069395]
[1736307337542,0.3608,96966.0,96965.0,0.02069395]
[1736307337748,0.7216,96966.0,96958.0,0.00154691]
[1736307338141,0.74206557,96966.0,96958.0,0.00154691]
[1736307339447,0.7216,96966.0,96958.0,0.00154691]
[1736307340046,0.11116944,96965.0,96958.0,0.00154691]
[1736307340247,0.11116944,96965.0,96958.0,0.00126701]
[1736307340752,0.72220001,96966.0,96958.0,0.00126701]
[1736307340950,0.7216,96966.0,96958.0,0.00126701]
[1736307341854,0.11116944,96965.0,96958.0,0.00126701]
[1736307342047,0.11116944,96965.0,96950.0,0.01978577]
[1736307342248,0.11116944,96965.0,96955.0,0.1023844]
[1736307342448,0.11116944,96964.0,96950.0,0.01978577]
[1736307343655,0.11116944,96963.0,96950.0,0.01978577]
[1736307344554,0.11116944,96963.0,96950.0,0.04031311]
[1736307344758,0.11116944,96962.0,96950.0,0.01978577]
[1736307345758,0.11116944,96961.0,96950.0,0.01978577]
[1736307346747,0.11116944,96960.0,96950.0,0.01978577]
[1736307346957,0.3608,96951.0,96950.0,0.1023844]
[1736307347157,0.3608,96951.0,96941.0,0.1023844]
[1736307348354,0.11116944,96950.0,96941.0,0.1023844]
[1736307349155,0.11116944,96949.0,96941.0,0.1023844]
[1736307349959,0.3608,96943.0,96941.0,0.1023844]
[1736307350159,0.3608,96943.0,96935.0,0.3608]
[1736307350751,0.3608,96943.0,96933.0,0.05322531]
[1736307350951,0.3608,96934.0,96933.0,0.05322531]
[1736307351463,0.3608,96934.0,96933.0,0.35322531]
[1736307351652,0.3608,96934.0,96933.0,0.05322531]
[1736307352248,0.48800315,96934.0,96933.0,0.05322531]
[1736307355056,0.48800315,96934.0,96931.0,0.08349741]
[1736307355263,0.48800315,96934.0,96930.0,0.4023844]
[1736307355764,0.48800315,96934.0,96930.0,0.21708026]
[1736307356167,0.27045061,96933.0,96930.0,0.21708026]
[1736307356364,0.27045061,96933.0,96930.0,0.23741959]
[1736307356564,0.27045061,96933.0,96930.0,0.02033933]
[1736307356762,0.27045061,96933.0,96926.0,0.4011]
[1736307357065,0.14324746,96933.0,96926.0,0.4011]
[1736307358553,0.14324746,96933.0,96929.0,0.43226692]
[1736307359165,0.3608,96934.0,96929.0,0.02046692]
[1736307359358,0.3608,96934.0,96924.0,0.54333593]
[1736307359559,0.3608,96934.0,96924.0,0.54281593]
[1736307359968,0.3608,96934.0,96924.0,0.563727]
[1736307361863,0.3608,96925.0,96924.0,0.4613426]
[1736307362057,0.3608,96925.0,96924.0,0.3589582]
[1736307363269,0.3608,96925.0,96924.0,0.24906539]
[1736307363860,0.3608,96925.0,96924.0,0.02091107]
[1736307364065,0.3608,96925.0,96915.0,0.2047688]
[1736307364668,0.3608,96925.0,96916.0,0.3115]
[1736307365556,0.3608,96925.0,96916.0,0.20600638]
[1736307367167,0.3608,96917.0,96915.0,0.22563871]
[1736307367479,0.3608,96917.0,96908.0,0.2206]
[1736307367859,0.3608,96917.0,96908.0,0.1774355]
[1736307368562,0.3608,96917.0,96915.0,0.001]
[1736307368762,0.35773917,96917.0,96915.0,0.001]
[1736307369368,0.35773917,96917.0,96909.0,0.3159]
[1736307370470,0.35773917,96917.0,96915.0,0.001]
[1736307370874,0.35773917,96917.0,96909.0,0.3159]
[1736307371072,0.35773917,96917.0,96909.0,0.3169]
[1736307371376,0.3608,96915.0,96908.0,0.05529662]
[1736307371672,0.3608,96915.0,96907.0,0.03740609]
[1736307371874,0.3608,96915.0,96900.0,0.3047688]
[1736307371875,0.3608,96908.0,96900.0,0.3047688]
[1736307372061,0.798,96907.0,96900.0,0.3047688]
[1736307372266,0.3608,96906.0,96900.0,0.32578749]
[1736307373469,0.3618,96906.0,96900.0,0.32578749]
[1736307374573,0.3618,96906.0,96900.0,0.24672604]
[1736307375777,0.3618,96906.0,96900.0,0.22205344]
[1736307382378,0.44471974,96906.0,96900.0,0.12340309]
[1736307384478,0.44471974,96906.0,96900.0,0.02101869]
[1736307384678,0.44471974,96906.0,96896.0,0.1023844]
[1736307385079,0.08391974,96906.0,96895.0,0.3608]
[1736307385285,0.4216,96905.0,96895.0,0.3608]
[1736307385688,0.4122,96904.0,96895.0,0.3608]
[1736307385885,0.3608,96899.0,96887.0,0.027253]
[1736307386087,0.3608,96899.0,96889.0,0.1023844]
[1736307386383,0.44371974,96899.0,96889.0,0.1023844]
[1736307387376,0.44471974,96899.0,96889.0,0.1023844]
[1736307388987,0.4254,96898.0,96889.0,0.1023844]
[1736307389487,0.50831974,96898.0,96889.0,0.1023844]
[1736307392788,0.50831974,96898.0,96894.0,0.3608]
[1736307394783,0.50831974,96898.0,96887.0,0.027253]
[1736307395492,0.50831974,96898.0,96888.0,0.1023844]
[1736307399691,0.50831974,96898.0,96887.0,0.0015471]
[1736307404798,0.50831974,96898.0,96885.0,0.03223847]
[1736307404998,0.50831974,96898.0,96884.0,0.3608]
[1736307406910,0.50831974,96898.0,96880.0,0.1023844]
[1736307407108,0.50831974,96898.0,96890.0,0.3608]
[1736307407709,0.50831974,96898.0,96890.0,0.32472001]
[1736307408013,0.3608,96894.0,96878.0,0.3608]
[1736307408410,0.44371974,96894.0,96878.0,0.3608]
[1736307409513,0.08291974,96894.0,96880.0,0.3608]
[1736307411810,0.1023844,96890.0,96880.0,0.3608]
[1736307412310,0.1023844,96890.0,96868.0,0.3608]
[1736307412311,0.4023844,96890.0,96868.0,0.3608]
[1736307412517,0.8117,96889.0,96870.0,0.3608]
[1736307412717,0.1023844,96880.0,96870.0,0.3608]
[1736307413017,0.3608,96873.0,96859.0,0.3608]
[1736307414508,0.6608,96873.0,96859.0,0.3608]
[1736307414714,0.3608,96873.0,96859.0,0.3608]
[1736307414916,0.39307614,96873.0,96859.0,0.3608]
[1736307415119,0.39307614,96873.0,96860.0,0.1023844]
[1736307415320,0.39307614,96873.0,96860.0,0.8528]
[1736307416719,0.1023844,96870.0,96860.0,0.8528]
[1736307417912,0.39307614,96873.0,96860.0,0.8528]
[1736307418920,0.39307614,96873.0,96861.0,0.3243]
[1736307419825,0.39307614,96873.0,96860.0,0.85332]
[1736307419826,0.39307614,96873.0,96860.0,0.00052]
[1736307420014,0.39307614,96873.0,96860.0,0.7937]
[1736307420415,0.3764,96888.0,96869.0,0.3608]
[1736307420620,0.3764,96888.0,96869.0,0.3531931]
[1736307420815,0.00052001,96890.0,96884.0,0.3608]
[1736307421422,0.1023844,96894.0,96884.0,0.3608]
[1736307421621,0.1023844,96894.0,96884.0,0.12982025]
[1736307422222,0.3608,96895.0,96884.0,0.12982025]
[1736307422419,0.3608,96895.0,96885.0,0.8175]
[1736307422622,0.39277432,96895.0,96885.0,0.8175]
[1736307422925,0.3608,96895.0,96885.0,0.80451798]
[1736307423119,0.3608,96895.0,96885.0,0.66592248]
[1736307424721,0.3608,96886.0,96851.0,0.3608]
[1736307425026,0.1023844,96880.0,96859.0,0.3608]
[1736307425221,0.3608,96877.0,96859.0,0.3608]
[1736307426727,0.39302169,96877.0,96859.0,0.3608]
[1736307428423,0.1023844,96870.0,96859.0,0.3608]
[1736307428820,0.33413044,96868.0,96859.0,0.3608]
[1736307429131,0.3608,96869.0,96853.0,0.3608]
[1736307429631,0.3,96869.0,96853.0,0.3608]
[1736307429830,0.1023844,96870.0,96853.0,0.3608]
[1736307430024,0.3,96870.0,96853.0,0.3608]
[1736307430224,0.1023844,96870.0,96853.0,0.3608]
[1736307434130,0.1023844,96870.0,96864.0,0.3608]
[1736307434923,0.03222169,96877.0,96864.0,0.3608]
[1736307435131,0.1023844,96880.0,96865.0,0.402]
[1736307435329,0.1023844,96880.0,96864.0,0.3608]
[1736307435529,0.1023844,96874.0,96864.0,0.3608]
[1736307435736,0.1023844,96880.0,96864.0,0.3608]
[1736307436036,0.1023844,96880.0,96865.0,0.402]
[1736307436231,0.1023844,96880.0,96865.0,0.8099]
[1736307436427,0.40789487,96885.0,96865.0,0.8099]
[1736307437229,0.27579487,96885.0,96865.0,0.8099]
[1736307437429,0.03159487,96885.0,96884.0,0.3608]
[1736307437632,0.3608,96897.0,96876.0,0.3608]
[1736307437633,0.1023844,96894.0,96876.0,0.3608]
[1736307437838,0.1023844,96894.0,96877.0,0.3036]
[1736307438426,0.3608,96897.0,96877.0,0.3036]
[1736307438626,0.39243351,96897.0,96877.0,0.10715157]
[1736307438934,0.39243351,96897.0,96885.0,0.3608]
[1736307439138,0.39243351,96897.0,96886.0,0.4169]
[1736307439341,0.39243351,96897.0,96886.0,0.32378641]
[1736307439534,0.39243351,96897.0,96887.0,0.21849157]
[1736307440535,0.39243351,96897.0,96887.0,0.15003293]
[1736307441636,0.39243351,96897.0,96886.0,0.12331402]
[1736307442637,0.39243351,96897.0,96886.0,0.06418747]
[1736307444139,0.39243351,96897.0,96885.0,0.32545513]
[1736307444847,0.39243351,96897.0,96886.0,0.4279]
[1736307445645,0.39243351,96897.0,96886.0,0.31791736]
[1736307445844,0.03163351,96897.0,96886.0,0.31791736]
[1736307446138,0.3608,96898.0,96886.0,0.31791736]
[1736307446944,0.3608,96898.0,96886.0,0.19026796]
[1736307447848,0.3608,96898.0,96886.0,0.13516117]
[1736307448145,0.3608,96898.0,96884.0,0.3608]
[1736307448146,0.3608,96890.0,96877.0,0.0520716]
[1736307448445,0.3608,96881.0,96854.0,0.3608]
[1736307448846,0.1023844,96870.0,96854.0,0.3608]
[1736307449035,0.1023844,96870.0,96842.0,0.3608]
[1736307449249,0.1023844,96870.0,96853.0,0.3608]
[1736307449939,0.1023844,96863.0,96853.0,0.3608]
[1736307450342,0.3891,96862.0,96853.0,0.3608]
[1736307451746,0.1023844,96870.0,96853.0,0.3608]
[1736307452149,0.38463291,96873.0,96853.0,0.3608]
[1736307452849,0.1023844,96870.0,96853.0,0.3608]
[1736307453249,0.1023844,96870.0,96854.0,0.4105]
[1736307453648,0.38463291,96873.0,96854.0,0.4105]
[1736307453849,0.38463291,96873.0,96862.0,0.3608]
[1736307454545,0.38463291,96873.0,96854.0,0.4105]
[1736307454746,0.38463291,96873.0,96860.0,0.1023844]
[1736307455547,0.38463291,96873.0,96854.0,0.4105]
[1736307456745,0.38463291,96873.0,96860.0,0.1023844]
[1736307456940,0.02383291,96873.0,96860.0,0.1023844]
[1736307457139,0.3608,96882.0,96867.0,0.3608]
[1736307457348,0.3608,96882.0,96870.0,0.02384441]
[1736307457547,0.3608,96882.0,96870.0,0.1023844]
[1736307457751,0.3608,96882.0,96871.0,0.25466624]
[1736307457940,0.19162018,96881.0,96871.0,0.25466624]
[1736307458747,0.38560871,96882.0,96871.0,0.25466624]
[1736307459448,0.38560871,96882.0,96871.0,0.14251119]
[1736307459654,0.3608,96882.0,96871.0,0.14251119]
[1736307461749,0.3608,96882.0,96871.0,0.03252825]
[1736307461954,0.3608,96882.0,96872.0,0.3018]
[1736307462747,0.3608,96882.0,96872.0,0.14313603]
[1736307463350,0.0243694,96884.0,96872.0,0.14313603]
[1736307463549,0.3608,96892.0,96872.0,0.14313603]
[1736307464454,0.38555622,96892.0,96880.0,0.1023844]
[1736307467150,0.38555622,96892.0,96878.0,0.35321053]
[1736307467459,0.38555622,96892.0,96880.0,0.1023844]
[1736307467759,0.38555622,96892.0,96878.0,0.31974476]
[1736307468755,0.3608,96891.0,96877.0,0.3608]
[1736307469761,0.3608,96891.0,96877.0,0.25082465]
[1736307470263,0.3608,96891.0,96872.0,0.14313603]
[1736307473564,0.1023844,96890.0,96872.0,0.14313603]
[1736307473763,0.1023844,96890.0,96872.0,0.03315788]
[1736307474063,0.3608,96882.0,96872.0,0.03315788]
[1736307474463,0.3608,96882.0,96868.0,0.36264549]
[1736307475858,0.38532189,96882.0,96868.0,0.36264549]
[1736307477457,0.38532189,96882.0,96868.0,0.23117664]
[1736307477661,0.38532189,96882.0,96869.0,0.28131895]
[1736307479362,0.19152462,96881.0,96869.0,0.28131895]
[1736307479766,0.19152462,96881.0,96868.0,0.19948941]
[1736307480671,0.19152462,96881.0,96866.0,0.3035]
[1736307481671,0.19152462,96881.0,96866.0,0.23707001]
[1736307481672,0.1023844,96880.0,96866.0,0.23707001]
[1736307481875,0.1023844,96880.0,96850.0,0.1023844]
[1736307482166,0.1023844,96880.0,96852.0,0.0243798]
[1736307483358,0.1023844,96880.0,96851.0,0.80932]
[1736307483566,0.3608,96870.0,96851.0,0.00052]
[1736307483760,0.3608,96861.0,96845.0,0.00154889]
[1736307483965,0.1023844,96860.0,96845.0,0.00154889]
[1736307486473,0.12688829,96860.0,96845.0,0.00154889]
[1736307486973,0.12688829,96860.0,96844.0,0.3608]
[1736307487566,0.02450389,96860.0,96847.0,0.3608]
[1736307487767,0.1023844,96857.0,96847.0,0.3608]
[1736307490273,0.80582001,96859.0,96847.0,0.3608]
[1736307490473,0.8053,96859.0,96847.0,0.3608]
[1736307499674,0.8053,96859.0,96839.0,0.3608]
[1736307500383,0.8053,96859.0,96847.0,0.3608]
[1736307502280,0.8053,96859.0,96858.0,0.3608]
[1736307506178,0.8053,96859.0,96858.0,0.25077969]
[1736307508976,0.02407319,96862.0,96858.0,0.25077969]
[1736307509176,0.8339,96873.0,96858.0,0.25077969]
[1736307510187,0.8339,96873.0,96858.0,0.14077143]
[1736307510785,0.8339,96873.0,96860.0,0.1023844]
[1736307511192,0.39095592,96874.0,96860.0,0.1023844]
[1736307512287,0.39095592,96874.0,96859.0,0.74866]
[1736307512582,0.39095592,96874.0,96859.0,0.7481]
[1736307514087,0.39095592,96874.0,96859.0,0.638094]
[1736307514290,0.39095592,96874.0,96859.0,0.4264]
[1736307518285,0.39095592,96874.0,96859.0,0.31639483]
[1736307519395,0.39095592,96874.0,96860.0,0.1023844]
[1736307519596,0.39095592,96874.0,96859.0,0.31639483]
[1736307521994,0.03015592,96874.0,96862.0,0.3608]
[1736307522201,0.3608,96876.0,96862.0,0.25079483]
[1736307526099,0.3608,96876.0,96862.0,0.1407915]
[1736307526301,0.3608,96876.0,96862.0,0.08407254]
[1736307528398,0.3608,96876.0,96859.0,0.31639483]
[1736307533304,0.3608,96867.0,96850.0,0.3608]
[1736307533501,0.3608,96857.0,96842.0,0.3608]
[1736307533701,0.4173,96856.0,96842.0,0.3608]
[1736307537706,0.45598399,96856.0,96842.0,0.3608]
[1736307540110,0.1023844,96852.0,96842.0,0.3608]
[1736307540314,0.45598399,96856.0,96842.0,0.3608]
[1736307542308,0.45598399,96856.0,96833.0,0.4273]
[1736307542509,0.45598399,96856.0,96842.0,0.3608]
[1736307545619,0.45598399,96856.0,96842.0,0.26633367]
[1736307546513,0.1023844,96852.0,96842.0,0.26633367]
[1736307546714,0.1023844,96852.0,96835.0,0.3608]
[1736307546715,0.3608,96851.0,96835.0,0.3608]
[1736307547015,0.1023844,96845.0,96834.0,0.3608]
[1736307547209,0.1023844,96845.0,96820.0,0.3608]
[1736307547416,0.1023844,96845.0,96829.0,0.3608]
[1736307549623,0.3608,96843.0,96829.0,0.32472001]
[1736307549924,0.3608,96851.0,96830.0,0.1023844]
[1736307550226,0.3608,96851.0,96840.0,0.3608]
[1736307551217,0.3608,96854.0,96840.0,0.3608]
[1736307552719,0.3608,96854.0,96841.0,1.08360956]
[1736307552916,0.3608,96862.0,96853.0,0.3608]
[1736307553620,0.3608,96862.0,96841.0,1.08412956]
[1736307553823,0.3608,96862.0,96841.0,1.08360956]
[1736307554224,0.3608,96862.0,96851.0,0.3608]
[1736307554623,0.1023844,96861.0,96851.0,0.3608]
[1736307554825,0.1023844,96861.0,96841.0,1.08412956]
[1736307555025,0.39893361,96862.0,96841.0,1.08412956]
[1736307555026,0.4631844,96851.0,96841.0,0.8338]
[1736307555227,0.4631844,96851.0,96827.0,0.3608]
[1736307555427,0.4631844,96851.0,96828.0,0.8372]
[1736307555939,0.4631844,96851.0,96829.0,0.3302]
[1736307555940,0.3608,96851.0,96829.0,0.3302]
[1736307556327,0.3608,96851.0,96830.0,0.1023844]
[1736307557637,0.19152462,96850.0,96830.0,0.1023844]
[1736307560427,0.19152462,96850.0,96835.0,0.3608]
[1736307561229,0.22995085,96850.0,96835.0,0.3608]
[1736307561541,0.22995085,96850.0,96835.0,0.25077949]
[1736307561737,0.22995085,96850.0,96830.0,0.1023844]
[1736307562135,0.33233525,96850.0,96834.0,0.3608]
[1736307562339,0.3608,96843.0,96834.0,0.3608]
[1736307562738,0.3608,96843.0,96828.0,0.83776]
[1736307562739,0.3608,96835.0,96828.0,0.83776]
[1736307563038,0.3608,96835.0,96824.0,0.00524906]
[1736307563243,0.3608,96825.0,96824.0,0.00524906]
[1736307564938,0.39870507,96825.0,96824.0,0.00524906]
[1736307565545,0.39870507,96825.0,96824.0,0.00472416]
[1736307567135,0.39870507,96825.0,96824.0,0.00425175]
[1736307567636,0.39870507,96825.0,96824.0,0.00325175]
[1736307569547,0.39870507,96825.0,96810.0,0.08450893]
[1736307569742,0.3608,96817.0,96810.0,0.08450893]
[1736307572148,0.3608,96817.0,96807.0,0.1023844]
[1736307576255,0.3608,96817.0,96802.0,0.26738803]
[1736307576645,0.3608,96814.0,96802.0,0.001]
[1736307578655,0.3608,96814.0,96801.0,1.02625001]
[1736307578855,0.3608,96814.0,96801.0,1.02565001]
[1736307579054,0.3608,96806.0,96801.0,0.8255]
[1736307579248,0.3608,96806.0,96800.0,0.1]
[1736307579551,1.1272,96805.0,96800.0,0.1]
[1736307579940,0.3608,96801.0,96800.0,0.1]
[1736307582445,0.38820326,96801.0,96800.0,0.08984506]
[1736307582645,0.38820326,96801.0,96800.0,0.07984507]
[1736307585048,0.38820326,96801.0,96800.0,0.07186057]
[1736307586551,0.38820326,96801.0,96800.0,0.02372958]
[1736307587055,0.38820326,96801.0,96800.0,0.01638859]
[1736307589454,0.38820326,96801.0,96800.0,0.01474974]
[1736307591649,0.34647427,96806.0,96800.0,0.01474974]
[1736307592455,0.37506403,96806.0,96800.0,0.01474974]
[1736307597457,0.37506403,96806.0,96800.0,0.01327477]
[1736307604669,0.37506403,96806.0,96780.0,0.4079]
[1736307604670,0.1023844,96790.0,96780.0,0.29781475]
[1736307604866,0.3608,96786.0,96775.0,0.3608]
[1736307605663,0.3608,96786.0,96764.0,0.3608]
[1736307605859,0.1023844,96783.0,96764.0,0.3608]
[1736307607677,0.1023844,96783.0,96766.0,0.4155]
[1736307609060,0.13013164,96783.0,96766.0,0.4155]
[1736307609265,0.13013164,96783.0,96773.0,0.40035665]
[1736307610081,0.13013164,96783.0,96773.0,0.29025417]
[1736307612881,0.02774724,96783.0,96773.0,0.29025417]
[1736307613076,0.3608,96786.0,96774.0,0.3305]
[1736307613975,0.3608,96786.0,96774.0,0.220403]
[1736307614571,0.3608,96786.0,96774.0,0.13325729]
[1736307614987,0.38852477,96786.0,96774.0,0.13325729]
[1736307615178,0.38852477,96786.0,96773.0,0.24834229]
[1736307617685,0.38852477,96786.0,96773.0,0.18742807]
[1736307618087,0.38852477,96786.0,96773.0,0.07733218]
[1736307619571,0.38852477,96786.0,96772.0,0.3608]
[1736307619572,0.1023844,96783.0,96772.0,0.3608]
[1736307620077,0.3608,96778.0,96766.0,0.4155]
[1736307620276,0.1023844,96776.0,96766.0,0.4155]
[1736307621281,0.3608,96778.0,96766.0,0.4155]
[1736307621684,0.3608,96769.0,96766.0,0.4155]
[1736307622777,0.3608,96769.0,96766.0,0.332245]
[1736307622976,0.3608,96769.0,96754.0,0.3994]
[1736307623881,0.3608,96769.0,96742.0,0.3608]
[1736307624083,0.3608,96769.0,96733.0,0.36235063]
[1736307624084,0.1023844,96752.0,96733.0,0.36235063]
[1736307624272,0.1023844,96744.0,96733.0,0.36235063]
[1736307624472,0.1023844,96744.0,96733.0,0.00155063]
[1736307625274,0.3608,96742.0,96722.0,0.3202]
[1736307625482,0.1023844,96740.0,96722.0,0.3202]
[1736307626188,0.1023844,96740.0,96723.0,0.4044]
[1736307626884,0.3608,96742.0,96723.0,0.4044]
[1736307627286,0.1023844,96740.0,96723.0,0.4044]
[1736307627990,0.3608,96742.0,96723.0,0.4044]